fUST/lending_fUST_20250613
["ID","MTS","AMOUNT","RATE_DAILY","PERIOD"]
[365646825,1749819032852,-1000.0,0.00021089,2]
[365646826,1749819032862,-1000.0,0.00021093,2]
[365646827,1749819032872,-500.0,0.00021094,2]
[365646828,1749819032882,-500.0,0.00021094,2]
[365646829,1749819032893,-500.0,0.00021094,2]
[365646830,1749819032902,-500.0,0.00021094,2]
[365646831,1749819032912,-500.0,0.00021094,2]
[365646832,1749819032922,-500.0,0.00021094,2]
[365646833,1749819032932,-500.0,0.00021094,2]
[365646834,1749819032942,-500.0,0.00021094,2]
[365646835,1749819032951,-386.49807055,0.00021094,2]
[365646836,1749819032961,-500.0,0.00021094,2]
[365646837,1749819032970,-500.0,0.00021094,2]
[365646838,1749819032989,-500.0,0.00021094,2]
[365646839,1749819033002,-500.0,0.00021094,2]
[365646840,1749819033012,-500.0,0.00021094,2]
[365646841,1749819033023,-158.24314428,0.00021094,2]
[365646842,1749819033034,-500.0,0.00021094,2]
[365646843,1749819033045,-500.0,0.00021094,2]
[365646844,1749819033056,-500.0,0.00021094,2]
[365646845,1749819033067,-500.0,0.00021094,2]
[365646846,1749819033079,-500.0,0.00021094,2]
[365646847,1749819033090,-500.0,0.00021094,2]
[365646848,1749819033103,-300.0,0.00021094,2]
[365646849,1749819033114,-1000.0,0.00021094,2]
[365646850,1749819033125,-1000.0,0.00021094,2]
[365646851,1749819033136,-1000.0,0.00021094,2]
[365646852,1749819033147,-1000.0,0.00021094,2]
[365646853,1749819033158,-1000.0,0.00021094,2]
[365646854,1749819033169,-769.2944999,0.00021094,2]
[365646855,1749819033180,-460.0,0.00021095,4]
[365646856,1749819033190,-607.18,0.00021095,4]
[365646857,1749819033201,-460.0,0.00021095,4]
[365646858,1749819033212,-460.0,0.00021095,4]
[365646859,1749819033223,-468.61627569,0.00021095,4]
[365646860,1749819033235,-460.0,0.00021095,4]
[365646861,1749819033245,-400.0,0.00021095,4]
[365646862,1749819033257,-325.02966182,0.00021095,4]
[365646863,1749819033267,-190.84100457,0.00021095,4]
[365646864,1749819033278,-274.63575684,0.00021095,4]
[365646865,1749819033290,-460.0,0.00021095,4]
[365646866,1749819033301,-360.77745493,0.00021095,4]
[365646867,1749819033314,-460.0,0.00021095,4]
[365646868,1749819033324,-460.0,0.00021095,4]
[365646869,1749819033335,-460.0,0.00021095,4]
[365646870,1749819033345,-460.0,0.00021095,4]
[365646871,1749819033356,-460.0,0.00021095,4]
[365646872,1749819033366,-400.0,0.00021095,4]
[365646873,1749819033376,-460.0,0.00021095,4]
[365646874,1749819033387,-460.0,0.00021095,4]
[365646875,1749819033398,-391.02805571,0.00021095,4]
[365646876,1749819033408,-460.0,0.00021095,4]
[365646877,1749819033419,-404.56130467,0.00021095,4]
[365646878,1749819033429,-460.0,0.00021095,4]
[365646879,1749819033439,-460.0,0.00021095,4]
[365646880,1749819033449,-460.0,0.00021095,4]
[365646881,1749819033459,-553.05673029,0.00021095,4]
[365646882,1749819033469,-460.0,0.00021095,4]
[365646883,1749819033482,-402.43239032,0.00021095,4]
[365646884,1749819033492,-460.0,0.00021095,4]
[365646885,1749819033502,-460.0,0.00021095,4]
[365646886,1749819033512,-460.0,0.00021095,4]
[365646887,1749819033523,-176.02551417,0.00021095,4]
[365646888,1749819033533,-460.0,0.00021095,4]
[365646889,1749819033543,-460.0,0.00021095,4]
[365646890,1749819033556,-688.12,0.00021095,2]
[365646891,1749819033567,-500.0,0.00021095,2]
[365646892,1749819033577,-420.0,0.00021095,2]
[365646893,1749819033587,-460.0,0.00021095,4]
[365646894,1749819033598,-460.0,0.00021095,4]
[365646895,1749819033608,-364.07672023,0.00021095,4]
[365646896,1749819033618,-460.0,0.00021095,4]
[365646897,1749819033628,-460.0,0.00021095,4]
[365646898,1749819033638,-512.57331536,0.00021095,4]
[365646899,1749819033649,-429.77487599,0.00021095,4]
[365646900,1749819033659,-460.0,0.00021095,4]
[365646901,1749819033669,-460.0,0.00021095,4]
[365646902,1749819033680,-460.0,0.00021095,4]
[365646903,1749819033690,-460.0,0.00021095,4]
[365646904,1749819033700,-460.0,0.00021095,4]
[365646905,1749819033710,-408.66269685,0.00021095,4]
[365646906,1749819033720,-460.0,0.00021095,4]
[365646907,1749819033730,-460.0,0.00021095,4]
[365646908,1749819033740,-326.00853514,0.00021095,4]
[365646909,1749819033750,-460.0,0.00021095,4]
[365646910,1749819033760,-460.0,0.00021095,4]
[365646911,1749819033770,-460.0,0.00021095,4]
[365646912,1749819033780,-460.0,0.00021095,4]
[365646913,1749819033790,-460.0,0.00021095,4]
[365646914,1749819033799,-460.0,0.00021095,4]
[365646915,1749819033809,-460.0,0.00021095,4]
[365646916,1749819033819,-440.0,0.00021095,4]
[365646917,1749819033829,-460.0,0.00021095,4]
[365646918,1749819033839,-460.0,0.00021095,4]
[365646919,1749819033850,-195.12988453,0.00021095,4]
[365646920,1749819033860,-460.0,0.00021095,4]
[365646921,1749819033870,-2390.63,0.00021095,4]
[365646922,1749819033880,-460.0,0.00021095,4]
[365646923,1749819033890,-460.0,0.00021095,4]
[365646924,1749819033900,-442.63886499,0.00021095,4]
[365646925,1749819033910,-457.09890554,0.00021095,4]
[365646926,1749819033920,-242.79927532,0.00021095,4]
[365646927,1749819033929,-460.0,0.00021095,4]
[365646928,1749819033939,-460.0,0.00021095,4]
[365646929,1749819033953,-460.0,0.00021095,4]
[365646930,1749819033962,-460.0,0.00021095,4]
[365646931,1749819033972,-460.0,0.00021095,4]
[365646932,1749819033981,-460.0,0.00021095,4]
[365646933,1749819033991,-460.0,0.00021095,4]
[365646934,1749819034001,-460.0,0.00021095,4]
[365646935,1749819034011,-460.0,0.00021095,4]
[365646936,1749819034021,-451.4369312,0.00021095,4]
[365646937,1749819034030,-460.0,0.00021095,4]
[365646938,1749819034040,-460.0,0.00021095,4]
[365646939,1749819034050,-1697.5,0.00021095,4]
[365646940,1749819034060,-410.0,0.00021095,4]
[365646941,1749819034070,-460.0,0.00021095,4]
[365646942,1749819034080,-460.0,0.00021095,4]
[365646943,1749819034090,-460.0,0.00021095,4]
[365646944,1749819034101,-473.73367023,0.00021095,4]
[365646945,1749819034111,-460.0,0.00021095,4]
[365646946,1749819034121,-410.0,0.00021095,4]
[365646947,1749819034130,-460.0,0.00021095,4]
[365646948,1749819034140,-377.56767647,0.00021095,4]
[365646949,1749819034150,-460.0,0.00021095,4]
[365646950,1749819034160,-460.0,0.00021095,4]
[365646951,1749819034170,-1389.73,0.00021095,4]
[365646952,1749819034180,-553.31251349,0.00021095,4]
[365646953,1749819034190,-544.44,0.00021095,4]
[365646954,1749819034200,-775.94,0.00021095,4]
[365646955,1749819034210,-460.0,0.00021095,4]
[365646956,1749819034219,-599.07,0.00021095,4]
[365646957,1749819034229,-298.95562093,0.00021095,4]
[365646958,1749819034239,-460.0,0.00021095,4]
[365646959,1749819034249,-1769.19,0.00021095,4]
[365646960,1749819034259,-460.0,0.00021095,4]
[365646961,1749819034269,-460.0,0.00021095,4]
[365646962,1749819034280,-460.0,0.00021095,4]
[365646963,1749819034290,-460.0,0.00021095,4]
[365646964,1749819034300,-460.0,0.00021095,4]
[365646965,1749819034310,-481.77,0.00021095,4]
[365646966,1749819034320,-460.0,0.00021095,4]
[365646967,1749819034330,-460.0,0.00021095,4]
[365646968,1749819034340,-460.0,0.00021095,4]
[365646969,1749819034351,-253.49559253,0.00021095,4]
[365646970,1749819034361,-460.0,0.00021095,4]
[365646971,1749819034370,-460.0,0.00021095,4]
[365646972,1749819034379,-460.0,0.00021095,4]
[365646973,1749819034391,-460.0,0.00021095,4]
[365646974,1749819034406,-460.0,0.00021095,4]
[365646975,1749819034415,-460.0,0.00021095,4]
[365646976,1749819034425,-271.42680196,0.00021095,4]
[365646977,1749819034434,-460.0,0.00021095,4]
[365646978,1749819034451,-460.0,0.00021095,4]
[365646979,1749819034461,-460.0,0.00021095,4]
[365646980,1749819034472,-460.0,0.00021095,4]
[365646981,1749819034484,-460.0,0.00021095,4]
[365646982,1749819034494,-460.0,0.00021095,4]
[365646983,1749819034504,-372.53739557,0.00021095,4]
[365646984,1749819034515,-460.0,0.00021095,4]
[365646985,1749819034525,-460.0,0.00021095,4]
[365646986,1749819034535,-460.0,0.00021095,4]
[365646987,1749819034544,-460.0,0.00021095,4]
[365646988,1749819034555,-460.0,0.00021095,4]
[365646989,1749819034564,-460.0,0.00021095,4]
[365646990,1749819034574,-460.0,0.00021095,4]
[365646991,1749819034584,-460.0,0.00021095,4]
[365646992,1749819034593,-460.0,0.00021095,4]
[365646993,1749819034604,-460.0,0.00021095,4]
[365646994,1749819034614,-810.13,0.00021095,4]
[365646995,1749819034624,-885.24,0.00021095,4]
[365646996,1749819034633,-764.8,0.00021095,4]
[365646997,1749819034642,-3751.31,0.00021095,4]
[365646998,1749819034652,-460.0,0.00021095,4]
[365646999,1749819034662,-398.23627875,0.00021095,4]
[365647000,1749819034671,-460.0,0.00021095,4]
[365647001,1749819034680,-460.0,0.00021095,4]
[365647002,1749819034690,-460.0,0.00021095,4]
[365647003,1749819034699,-370.0,0.00021095,4]
[365647004,1749819034708,-460.0,0.00021095,4]
[365647005,1749819034718,-460.0,0.00021095,4]
[365647006,1749819034727,-460.0,0.00021095,4]
[365647007,1749819034737,-463.53,0.00021095,4]
[365647008,1749819034746,-460.0,0.00021095,4]
[365647009,1749819034755,-1145.86,0.00021095,4]
[365647010,1749819034765,-460.0,0.00021095,4]
[365647011,1749819034775,-460.0,0.00021095,4]
[365647012,1749819034785,-930.02,0.00021095,4]
[365647013,1749819034795,-500.0,0.00021095,2]
[365647014,1749819034804,-500.0,0.00021095,2]
[365647015,1749819034814,-500.0,0.00021095,2]
[365647016,1749819034823,-500.0,0.00021095,2]
[365647017,1749819034833,-506.2273258,0.00021095,2]
[365647018,1749819034842,-460.0,0.00021095,4]
[365647019,1749819034853,-460.0,0.00021095,4]
[365647020,1749819034862,-285.49353347,0.00021095,4]
[365647021,1749819034872,-365.81846083,0.00021095,4]
[365647022,1749819034881,-460.0,0.00021095,4]
[365647023,1749819034891,-460.0,0.00021095,4]
[365647024,1749819034900,-350.0,0.00021095,4]
[365647025,1749819034910,-1561.47,0.00021095,4]
[365647026,1749819034919,-460.0,0.00021095,4]
[365647027,1749819034929,-460.0,0.00021095,4]
[365647028,1749819034939,-460.0,0.00021095,4]
[365647029,1749819035052,-460.0,0.00021095,4]
[365647030,1749819035063,-460.0,0.00021095,4]
[365647031,1749819035073,-460.0,0.00021095,4]
[365647032,1749819035083,-460.0,0.00021095,4]
[365647033,1749819035093,-1552.42,0.00021095,4]
[365647034,1749819035103,-1466.04,0.00021095,4]
[365647035,1749819035113,-460.0,0.00021095,4]
[365647036,1749819035122,-460.0,0.00021095,4]
[365647037,1749819035132,-460.0,0.00021095,4]
[365647038,1749819035142,-1181.47,0.00021095,4]
[365647039,1749819035152,-460.0,0.00021095,4]
[365647040,1749819035161,-460.0,0.00021095,4]
[365647041,1749819035171,-460.0,0.00021095,4]
[365647042,1749819035180,-460.0,0.00021095,4]
[365647043,1749819035189,-460.0,0.00021095,4]
[365647044,1749819035198,-500.0,0.00021095,4]
[365647045,1749819035208,-500.0,0.00021095,4]
[365647046,1749819035217,-500.0,0.00021095,4]
[365647047,1749819035227,-151.86626393,0.00021122,4]
[365647048,1749819035236,-918.79251259,0.00021141,4]
[365647049,1749819035245,-972.86,0.00021179,2]
[365647050,1749819035255,-484.22642462,0.00021227,2]
[365647051,1749819035264,-918.79251259,0.00021348,5]
[365647052,1749819035274,-370.81391833,0.00021369,4]
[365647053,1749819035283,-460.0,0.00021369,4]
[365647054,1749819035294,-460.0,0.00021369,4]
[365647055,1749819035304,-460.0,0.00021369,4]
[365647056,1749819035313,-460.0,0.00021369,4]
[365647057,1749819035323,-460.0,0.00021369,4]
[365647058,1749819035332,-310.0,0.00021369,4]
[365647059,1749819035341,-460.0,0.00021369,4]
[365647060,1749819035352,-460.0,0.00021369,4]
[365647061,1749819035362,-460.0,0.00021369,4]
[365647062,1749819035372,-460.0,0.00021369,4]
[365647063,1749819035381,-460.0,0.00021369,4]
[365647064,1749819035391,-460.0,0.00021369,4]
[365647065,1749819035400,-460.0,0.00021369,4]
[365647066,1749819035411,-460.0,0.00021369,4]
[365647067,1749819035421,-688.12,0.00021369,2]
[365647068,1749819035430,-460.0,0.00021369,4]
[365647069,1749819035439,-460.0,0.00021369,4]
[365647070,1749819035449,-344.34380485,0.00021369,4]
[365647071,1749819035459,-460.0,0.00021369,4]
[365647072,1749819035470,-460.0,0.00021369,4]
[365647073,1749819035483,-460.0,0.00021369,4]
[365647074,1749819035492,-460.0,0.00021369,4]
[365647075,1749819035501,-460.0,0.00021369,4]
[365647076,1749819035511,-460.0,0.00021369,4]
[365647077,1749819035521,-440.0,0.00021369,4]
[365647078,1749819035530,-460.0,0.00021369,4]
[365647079,1749819035540,-2390.63,0.00021369,4]
[365647080,1749819035551,-460.0,0.00021369,4]
[365647081,1749819035561,-460.0,0.00021369,4]
[365647082,1749819035570,-460.0,0.00021369,4]
[365647083,1749819035580,-460.0,0.00021369,4]
[365647084,1749819035589,-460.0,0.00021369,4]
[365647085,1749819035601,-1697.5,0.00021369,4]
[365647086,1749819035610,-460.0,0.00021369,4]
[365647087,1749819035620,-460.0,0.00021369,4]
[365647088,1749819035630,-1389.73,0.00021369,4]
[365647089,1749819035639,-544.44,0.00021369,4]
[365647090,1749819035649,-775.94,0.00021369,4]
[365647091,1749819035658,-599.07,0.00021369,4]
[365647092,1749819035669,-1769.19,0.00021369,4]
[365647093,1749819035679,-460.0,0.00021369,4]
[365647094,1749819035688,-460.0,0.00021369,4]
[365647095,1749819035698,-460.0,0.00021369,4]
[365647096,1749819035707,-481.77,0.00021369,4]
[365647097,1749819035716,-460.0,0.00021369,4]
[365647098,1749819035726,-460.0,0.00021369,4]
[365647099,1749819035735,-460.0,0.00021369,4]
[365647100,1749819035745,-460.0,0.00021369,4]
[365647101,1749819035755,-460.0,0.00021369,4]
[365647102,1749819035764,-460.0,0.00021369,4]
[365647103,1749819035774,-460.0,0.00021369,4]
[365647104,1749819035783,-460.0,0.00021369,4]
[365647105,1749819035792,-460.0,0.00021369,4]
[365647106,1749819035802,-460.0,0.00021369,4]
[365647107,1749819035811,-460.0,0.00021369,4]
[365647108,1749819035821,-342.74454424,0.00021369,4]
[365647109,1749819035831,-460.0,0.00021369,4]
[365647110,1749819035840,-460.0,0.00021369,4]
[365647111,1749819035851,-260.0,0.00021369,4]
[365647112,1749819035860,-460.0,0.00021369,4]
[365647113,1749819035870,-810.13,0.00021369,4]
[365647114,1749819035879,-885.24,0.00021369,4]
[365647115,1749819035888,-764.8,0.00021369,4]
[365647116,1749819035897,-3751.31,0.00021369,4]
[365647117,1749819035906,-460.0,0.00021369,4]
[365647118,1749819035915,-460.0,0.00021369,4]
[365647119,1749819035925,-460.0,0.00021369,4]
[365647120,1749819035934,-1145.86,0.00021369,4]
[365647121,1749819035943,-270.0,0.00021369,4]
[365647122,1749819035953,-930.02,0.00021369,4]
[365647123,1749819035963,-460.0,0.00021369,4]
[365647124,1749819035972,-460.0,0.00021369,4]
[365647125,1749819035982,-1561.47,0.00021369,4]
[365647126,1749819035991,-406.18812099,0.00021369,4]
[365647127,1749819036000,-150.60226109,0.00021369,4]
[365647128,1749819036010,-460.0,0.00021369,4]
[365647129,1749819036020,-1552.42,0.00021369,4]
[365647130,1749819036030,-1466.04,0.00021369,4]
[365647131,1749819036039,-180.0,0.00021369,4]
[365647132,1749819036048,-460.0,0.00021369,4]
[365647133,1749819036058,-460.0,0.00021369,4]
[365647134,1749819036067,-1181.47,0.00021369,4]
[365647135,1749819036076,-460.0,0.00021369,4]
[365647136,1749819036086,-460.0,0.00021369,4]
[365647137,1749819036095,-460.0,0.00021369,4]
[365647138,1749819036104,-460.0,0.00021369,4]
[365647139,1749819036114,-420.0,0.00021425,2]
[365647140,1749819036124,-420.0,0.00021426,2]
[365647141,1749819036134,-903.1202829,0.00021474,2]
[365647142,1749819036143,-918.79251259,0.00021555,5]
[365647143,1749819036153,-500.0,0.00021558,2]
[365647144,1749819036163,-500.0,0.00021558,2]
[365647145,1749819036173,-500.0,0.00021558,2]
[365647146,1749819036182,-203.32136593,0.00021558,2]
[365647147,1749819036192,-500.0,0.00021558,2]
[365647148,1749819036201,-1000.0,0.00021621,2]
[365647149,1749819036211,-1000.0,0.00021621,2]
[365647150,1749819036220,-503.03143341,0.00021621,2]
[365647151,1749819036229,-502.67348192,0.00021621,2]
[365647152,1749819036239,-500.0,0.00021636,2]
[365647153,1749819036249,-500.0,0.00021637,3]
[365647154,1749819036259,-460.0,0.00021643,4]
[365647155,1749819036269,-460.0,0.00021643,4]
[365647156,1749819036278,-256.63768542,0.00021643,4]
[365647157,1749819036288,-536.93,0.00021643,4]
[365647158,1749819036297,-460.0,0.00021643,4]
[365647159,1749819036307,-460.0,0.00021643,4]
[365647160,1749819036316,-526.93330578,0.00021643,4]
[365647161,1749819036325,-460.0,0.00021643,4]
[365647162,1749819036335,-460.0,0.00021643,4]
[365647163,1749819036344,-460.0,0.00021643,4]
[365647164,1749819036353,-460.0,0.00021643,4]
[365647165,1749819036363,-688.12,0.00021643,2]
[365647166,1749819036372,-460.0,0.00021643,4]
[365647167,1749819036382,-460.0,0.00021643,4]
[365647168,1749819036391,-460.0,0.00021643,4]
[365647169,1749819036400,-460.0,0.00021643,4]
[365647170,1749819036410,-460.0,0.00021643,4]
[365647171,1749819036422,-428.71451515,0.00021643,4]
[365647172,1749819036432,-460.0,0.00021643,4]
[365647173,1749819036441,-2390.63,0.00021643,4]
[365647174,1749819036450,-460.0,0.00021643,4]
[365647175,1749819036460,-460.0,0.00021643,4]
[365647176,1749819036471,-400.0,0.00021643,4]
[365647177,1749819036481,-460.0,0.00021643,4]
[365647178,1749819036491,-1697.5,0.00021643,4]
[365647179,1749819036500,-460.0,0.00021643,4]
[365647180,1749819036511,-1389.73,0.00021643,4]
[365647181,1749819036520,-544.44,0.00021643,4]
[365647182,1749819036530,-775.94,0.00021643,4]
[365647183,1749819036539,-599.07,0.00021643,4]
[365647184,1749819036551,-1769.19,0.00021643,4]
[365647185,1749819036562,-460.0,0.00021643,4]
[365647186,1749819036571,-460.0,0.00021643,4]
[365647187,1749819036581,-481.77,0.00021643,4]
[365647188,1749819036590,-400.0,0.00021643,4]
[365647189,1749819036601,-460.0,0.00021643,4]
[365647190,1749819036610,-460.0,0.00021643,4]
[365647191,1749819036620,-460.0,0.00021643,4]
[365647192,1749819036629,-460.0,0.00021643,4]
[365647193,1749819036639,-460.0,0.00021643,4]
[365647194,1749819036649,-460.0,0.00021643,4]
[365647195,1749819036658,-460.0,0.00021643,4]
[365647196,1749819036667,-422.41911546,0.00021643,4]
[365647197,1749819036676,-460.0,0.00021643,4]
[365647198,1749819036686,-460.0,0.00021643,4]
[365647199,1749819036695,-810.13,0.00021643,4]
[365647200,1749819036704,-885.24,0.00021643,4]
[365647201,1749819036713,-764.8,0.00021643,4]
[365647202,1749819036723,-3751.31,0.00021643,4]
[365647203,1749819036733,-460.0,0.00021643,4]
[365647204,1749819036743,-460.0,0.00021643,4]
[365647205,1749819036752,-460.0,0.00021643,4]
[365647206,1749819036761,-1145.86,0.00021643,4]
[365647207,1749819036771,-930.02,0.00021643,4]
[365647208,1749819036780,-460.0,0.00021643,4]
[365647209,1749819036790,-460.0,0.00021643,4]
[365647210,1749819036799,-1561.47,0.00021643,4]
[365647211,1749819036808,-460.0,0.00021643,4]
[365647212,1749819036818,-1552.42,0.00021643,4]
[365647213,1749819036827,-1466.04,0.00021643,4]
[365647214,1749819036836,-460.0,0.00021643,4]
[365647215,1749819036847,-460.0,0.00021643,4]
[365647216,1749819036857,-1181.47,0.00021643,4]
[365647217,1749819036866,-460.0,0.00021643,4]
[365647218,1749819036876,-460.0,0.00021643,4]
[365647219,1749819036885,-460.0,0.00021643,4]
[365647220,1749819036895,-460.0,0.00021643,4]
[365647221,1749819036904,-918.79251259,0.00021762,5]
[365647222,1749819036914,-449.90769174,0.000218,2]
[365647223,1749819036923,-187.18986344,0.00021917,4]
[365647224,1749819036933,-260.0,0.00021917,4]
[365647225,1749819036942,-460.0,0.00021917,4]
[365647226,1749819036951,-460.0,0.00021917,4]
[365647227,1749819036961,-603.57942235,0.00021917,4]
[365647228,1749819036971,-320.0,0.00021917,4]
[365647229,1749819036980,-460.0,0.00021917,4]
[365647230,1749819036990,-460.0,0.00021917,4]
[365647231,1749819037000,-688.12,0.00021917,2]
[365647232,1749819037009,-460.0,0.00021917,4]
[365647233,1749819037019,-460.0,0.00021917,4]
[365647234,1749819037107,-460.0,0.00021917,4]
[365647235,1749819037128,-460.0,0.00021917,4]
[365647236,1749819037138,-460.0,0.00021917,4]
[365647237,1749819037147,-460.0,0.00021917,4]
[365647238,1749819037158,-2390.63,0.00021917,4]
[365647239,1749819037167,-460.0,0.00021917,4]
[365647240,1749819037177,-460.0,0.00021917,4]
[365647241,1749819037187,-1697.5,0.00021917,4]
[365647242,1749819037196,-460.0,0.00021917,4]
[365647243,1749819037206,-1389.73,0.00021917,4]
[365647245,1749819037216,-544.44,0.00021917,4]
[365647247,1749819037226,-775.94,0.00021917,4]
[365647249,1749819037236,-599.07,0.00021917,4]
[365647251,1749819037246,-1769.19,0.00021917,4]
[365647252,1749819037257,-320.0,0.00021917,4]
[365647253,1749819037266,-460.0,0.00021917,4]
[365647254,1749819037276,-481.77,0.00021917,4]
[365647255,1749819037286,-460.0,0.00021917,4]
[365647256,1749819037295,-460.0,0.00021917,4]
[365647257,1749819037305,-460.0,0.00021917,4]
[365647258,1749819037314,-460.0,0.00021917,4]
[365647259,1749819037323,-460.0,0.00021917,4]
[365647260,1749819037333,-460.0,0.00021917,4]
[365647261,1749819037343,-460.0,0.00021917,4]
[365647263,1749819037355,-460.0,0.00021917,4]
[365647264,1749819037364,-810.13,0.00021917,4]
[365647265,1749819037374,-885.24,0.00021917,4]
[365647266,1749819037385,-764.8,0.00021917,4]
[365647267,1749819037395,-3751.31,0.00021917,4]
[365647268,1749819037404,-500.0,0.00021917,2]
[365647269,1749819037414,-460.0,0.00021917,4]
[365647271,1749819037424,-460.0,0.00021917,4]
[365647272,1749819037433,-460.0,0.00021917,4]
[365647274,1749819037443,-1145.86,0.00021917,4]
[365647275,1749819037453,-930.02,0.00021917,4]
[365647276,1749819037464,-460.0,0.00021917,4]
[365647277,1749819037476,-460.0,0.00021917,4]
[365647278,1749819037486,-1561.47,0.00021917,4]
[365647280,1749819037496,-460.0,0.00021917,4]
[365647282,1749819037505,-1552.42,0.00021917,4]
[365647283,1749819037515,-1466.04,0.00021917,4]
[365647284,1749819037524,-460.0,0.00021917,4]
[365647285,1749819037534,-460.0,0.00021917,4]
[365647286,1749819037543,-1181.47,0.00021917,4]
[365647288,1749819037554,-460.0,0.00021917,4]
[365647289,1749819037564,-460.0,0.00021917,4]
[365647290,1749819037574,-460.0,0.00021917,4]
[365647291,1749819037584,-460.0,0.00021917,4]
[365647292,1749819037593,-918.79251259,0.00021969,6]
[365647294,1749819037603,-310.71588906,0.00022,2]
[365647295,1749819037613,-1192.0,0.00022,120]
[365647296,1749819037624,-903.1202829,0.00022045,2]
[365647297,1749819037633,-1000.0,0.00022106,2]
[365647298,1749819037643,-1000.0,0.00022106,2]
[365647299,1749819037653,-1000.0,0.00022106,2]
[365647300,1749819037663,-1500.0,0.00022168,2]
[365647301,1749819037672,-505.04697599,0.00022168,2]
[365647302,1749819037682,-153.0,0.00022175,2]
[365647303,1749819037692,-153.0,0.00022175,2]
[365647304,1749819037701,-153.0,0.00022175,2]
[365647305,1749819037711,-153.0,0.00022175,2]
[365647306,1749819037720,-153.0,0.00022175,2]
[365647307,1749819037730,-153.0,0.00022175,2]
[365647308,1749819037740,-153.0,0.00022175,2]
[365647309,1749819037750,-918.79251259,0.00022176,6]
[365647310,1749819037760,-1000.0,0.00022184,2]
[365647312,1749819037769,-522.9,0.00022185,4]
[365647314,1749819037779,-3373.67676,0.00022186,2]
[365647316,1749819037788,-1945.72,0.00022187,2]
[365647318,1749819037798,-460.0,0.00022191,4]
[365647320,1749819037808,-460.0,0.00022191,4]
[365647322,1749819037818,-460.0,0.00022191,4]
[365647324,1749819037827,-460.0,0.00022191,4]
[365647326,1749819037837,-688.12,0.00022191,2]
[365647328,1749819037846,-460.0,0.00022191,4]
[365647329,1749819037852,-207.14,0.00022191,4]
[365647331,1749819037858,-460.0,0.00022191,4]
[365647333,1749819037864,-360.0,0.00022191,4]
[365647334,1749819037872,-460.0,0.00022191,4]
[365647336,1749819037880,-460.0,0.00022191,4]
[365647339,1749819037889,-2390.63,0.00022191,4]
[365647341,1749819037899,-460.0,0.00022191,4]
[365647344,1749819037909,-268.46,0.00022191,4]
[365647346,1749819037918,-1697.5,0.00022191,4]
[365647348,1749819037927,-460.0,0.00022191,4]
[365647350,1749819037933,-1389.73,0.00022191,4]
[365647352,1749819037940,-544.44,0.00022191,4]
[365647354,1749819037948,-775.94,0.00022191,4]
[365647356,1749819037958,-599.07,0.00022191,4]
[365647358,1749819037966,-1769.19,0.00022191,4]
[365647360,1749819037975,-460.0,0.00022191,4]